[Event "*** Titled Tuesday Blitz"]
[Site "Chess.com"]
[Date "2021.04.20"]
[Round "4"]
[White "annamaja"]
[Black "Qvalda"]
[Result "0-1"]
[WhiteElo "2278"]
[BlackElo "2454"]
[TimeControl "180+1"]
[EndTime "10:39:39 PDT"]
[Termination "Qvalda won on time"]

1. e4 {[%clk 0:03:00.9]} 1... d6 {[%clk 0:02:58.5]} 2. d4 {[%clk 0:03:00.6]}
2... Nf6 {[%clk 0:02:55.3]} 3. Nc3 {[%clk 0:02:58.2]} 3... g6 {[%clk 0:02:52.2]}
4. Nf3 {[%clk 0:02:55.9]} 4... Bg7 {[%clk 0:02:51.9]} 5. Be2 {[%clk 0:02:47.9]}
5... O-O {[%clk 0:02:51.4]} 6. h3 {[%clk 0:02:43.5]} 6... Nc6 {[%clk 0:02:47.3]}
7. Be3 {[%clk 0:02:42.1]} 7... e5 {[%clk 0:02:23.8]} 8. d5 {[%clk 0:02:35.5]}
8... Ne7 {[%clk 0:02:24]} 9. Qd2 {[%clk 0:02:35.1]} 9... c6 {[%clk 0:02:10.6]}
10. dxc6 {[%clk 0:02:19.9]} 10... bxc6 {[%clk 0:01:57.5]} 11. Rd1 {[%clk
0:02:05.2]} 11... Qa5 {[%clk 0:01:56.8]} 12. O-O {[%clk 0:01:57.2]} 12... Ne8
{[%clk 0:01:15]} 13. Bg5 {[%clk 0:01:37.8]} 13... f6 {[%clk 0:01:09.7]} 14. Bh6
{[%clk 0:01:35.1]} 14... Be6 {[%clk 0:01:09]} 15. Nd5 {[%clk 0:01:14.6]} 15...
Qxd2 {[%clk 0:00:48.6]} 16. Nxe7+ {[%clk 0:01:10.2]} 16... Kf7 {[%clk
0:00:49.2]} 17. Bxd2 {[%clk 0:00:53.1]} 17... Kxe7 {[%clk 0:00:48.9]} 18. Bc3
{[%clk 0:00:45.7]} 18... Rb8 {[%clk 0:00:30]} 19. Nd2 {[%clk 0:00:33.9]} 19...
d5 {[%clk 0:00:28.5]} 20. b3 {[%clk 0:00:26.8]} 20... Kf7 {[%clk 0:00:25.4]} 21.
f4 {[%clk 0:00:21]} 21... d4 {[%clk 0:00:22.7]} 22. Bb2 {[%clk 0:00:20.1]} 22...
Kg8 {[%clk 0:00:21.7]} 23. Bc4 {[%clk 0:00:16.3]} 23... Bxc4 {[%clk 0:00:20.1]}
24. Nxc4 {[%clk 0:00:17.2]} 24... Nc7 {[%clk 0:00:18]} 25. c3 {[%clk 0:00:15.4]}
25... c5 {[%clk 0:00:16.6]} 26. Ba3 {[%clk 0:00:13.5]} 26... Na6 {[%clk
0:00:07.9]} 27. Rd3 {[%clk 0:00:08]} 27... Rfd8 {[%clk 0:00:06.9]} 28. Rfd1
{[%clk 0:00:07.9]} 28... Rbc8 {[%clk 0:00:05.9]} 29. Kf2 {[%clk 0:00:06.1]}
29... Nb8 {[%clk 0:00:06.1]} 30. Na5 {[%clk 0:00:03.5]} 30... Nd7 {[%clk
0:00:05.6]} 31. Nb7 {[%clk 0:00:02.9]} 31... Rf8 {[%clk 0:00:05.4]} 32. Nd6
{[%clk 0:00:03.3]} 32... Rc6 {[%clk 0:00:05.4]} 33. Nb5 {[%clk 0:00:03.6]} 33...
a6 {[%clk 0:00:05.2]} 34. Nxd4 {[%clk 0:00:03.3]} 34... cxd4 {[%clk 0:00:05.2]}
35. Bxf8 {[%clk 0:00:03.2]} 35... Bxf8 {[%clk 0:00:05.5]} 36. cxd4 {[%clk
0:00:04.1]} 36... exd4 {[%clk 0:00:05.6]} 37. Rxd4 {[%clk 0:00:05]} 37... Bc5
{[%clk 0:00:05.9]} 38. Kf3 {[%clk 0:00:04.9]} 38... Bxd4 {[%clk 0:00:06.1]} 39.
Rxd4 {[%clk 0:00:05.8]} 39... Nf8 {[%clk 0:00:06.3]} 40. Ra4 {[%clk 0:00:05.5]}
40... Kf7 {[%clk 0:00:05.3]} 41. g4 {[%clk 0:00:05.9]} 41... Ke6 {[%clk
0:00:05.3]} 42. h4 {[%clk 0:00:05.8]} 42... Kd6 {[%clk 0:00:04.7]} 43. Rd4+
{[%clk 0:00:05.6]} 43... Kc7 {[%clk 0:00:04.4]} 44. g5 {[%clk 0:00:04.9]} 44...
Ne6 {[%clk 0:00:03.7]} 45. Rd5 {[%clk 0:00:04.6]} 45... fxg5 {[%clk 0:00:03.6]}
46. hxg5 {[%clk 0:00:05.5]} 46... Rc3+ {[%clk 0:00:03]} 47. Kg4 {[%clk
0:00:06.1]} 47... Rc2 {[%clk 0:00:02.9]} 48. Re5 {[%clk 0:00:05.9]} 48... Nd4
{[%clk 0:00:02]} 49. Ra5 {[%clk 0:00:06.1]} 49... Kb6 {[%clk 0:00:02.1]} 50. Ra4
{[%clk 0:00:06.6]} 50... Rg2+ {[%clk 0:00:01.8]} 51. Kh3 {[%clk 0:00:07]} 51...
Rd2 {[%clk 0:00:02.7]} 52. Rc4 {[%clk 0:00:06.3]} 52... Nc6 {[%clk 0:00:02.7]}
53. a4 {[%clk 0:00:06.3]} 53... Rd3+ {[%clk 0:00:03.1]} 54. Kg4 {[%clk
0:00:06.2]} 54... Rxb3 {[%clk 0:00:04]} 55. e5 {[%clk 0:00:06.2]} 55... Rb4
{[%clk 0:00:04.3]} 56. Rc3 {[%clk 0:00:05.9]} 56... Ne7 {[%clk 0:00:04.1]} 57.
Ra3 {[%clk 0:00:05.1]} 57... Nd5 {[%clk 0:00:04.1]} 58. Rf3 {[%clk 0:00:05.3]}
58... Rxa4 {[%clk 0:00:04.5]} 59. Kg3 {[%clk 0:00:05.8]} 59... Kc6 {[%clk
0:00:04.9]} 60. f5 {[%clk 0:00:06.4]} 60... gxf5 {[%clk 0:00:05.1]} 61. Rxf5
{[%clk 0:00:07.3]} 61... Kd7 {[%clk 0:00:05.5]} 62. Rf7+ {[%clk 0:00:07.3]}
62... Ke6 {[%clk 0:00:05.9]} 63. Rxh7 {[%clk 0:00:07.8]} 63... Kxe5 {[%clk
0:00:06.2]} 64. g6 {[%clk 0:00:08]} 64... Kf6 {[%clk 0:00:04.1]} 65. g7 {[%clk
0:00:08.1]} 65... Kf7 {[%clk 0:00:04.6]} 66. Rh5 {[%clk 0:00:07.7]} 66... Nf6
{[%clk 0:00:04.6]} 67. Re5 {[%clk 0:00:02.4]} 67... Kxg7 {[%clk 0:00:04.5]} 68.
Kf3 {[%clk 0:00:02.8]} 68... Kf7 {[%clk 0:00:04.8]} 69. Rc5 {[%clk 0:00:02]}
69... Ke6 {[%clk 0:00:04.8]} 70. Ke3 {[%clk 0:00:02.3]} 70... Kd6 {[%clk
0:00:04.9]} 71. Rc8 {[%clk 0:00:02.2]} 71... Nd5+ {[%clk 0:00:05.2]} 72. Kd3
{[%clk 0:00:02.2]} 72... Nc7 {[%clk 0:00:05.2]} 73. Rb8 {[%clk 0:00:02.1]} 73...
Kc6 {[%clk 0:00:05.2]} 74. Kc3 {[%clk 0:00:02.3]} 74... Ra5 {[%clk 0:00:05.2]}
75. Kb4 {[%clk 0:00:02.1]} 75... Rb5+ {[%clk 0:00:05.3]} 76. Rxb5 {[%clk
0:00:01.7]} 76... axb5 {[%clk 0:00:06.2]} 0-1

[Event "*** Titled Tuesday Blitz"]
[Site "Chess.com"]
[Date "2021.04.20"]
[Round "4"]
[White "TeukkaSalama"]
[Black "WisdomGame"]
[Result "1/2-1/2"]
[WhiteElo "2383"]
[BlackElo "2098"]
[TimeControl "180+1"]
[EndTime "10:39:42 PDT"]
[Termination "Game drawn - insufficient material"]

1. d4 {[%clk 0:03:00.9]} 1... Nf6 {[%clk 0:03:00.4]} 2. Bf4 {[%clk 0:03:00.1]}
2... e6 {[%clk 0:02:58.2]} 3. e3 {[%clk 0:03:00.3]} 3... c5 {[%clk 0:02:58.3]}
4. c3 {[%clk 0:03:00.3]} 4... Nc6 {[%clk 0:02:58.1]} 5. Nd2 {[%clk 0:03:00.2]}
5... Be7 {[%clk 0:02:57.8]} 6. h3 {[%clk 0:02:56.5]} 6... O-O {[%clk 0:02:57.8]}
7. Ngf3 {[%clk 0:02:56.7]} 7... b6 {[%clk 0:02:58.2]} 8. Bd3 {[%clk 0:02:56.2]}
8... Bb7 {[%clk 0:02:57.8]} 9. O-O {[%clk 0:02:54.1]} 9... Rc8 {[%clk
0:02:57.3]} 10. Re1 {[%clk 0:02:51.4]} 10... Re8 {[%clk 0:02:57.1]} 11. a4
{[%clk 0:02:50.1]} 11... Bf8 {[%clk 0:02:55.2]} 12. e4 {[%clk 0:02:47.1]} 12...
d6 {[%clk 0:02:54.8]} 13. Qe2 {[%clk 0:02:35.4]} 13... e5 {[%clk 0:02:52.2]} 14.
dxe5 {[%clk 0:02:29.6]} 14... dxe5 {[%clk 0:02:51.6]} 15. Bg5 {[%clk 0:02:28.2]}
15... Be7 {[%clk 0:02:50.2]} 16. Rad1 {[%clk 0:02:26.7]} 16... Qc7 {[%clk
0:02:49]} 17. Bc4 {[%clk 0:02:19.8]} 17... Rcd8 {[%clk 0:02:42.6]} 18. Nf1
{[%clk 0:02:18.5]} 18... Na5 {[%clk 0:02:31.9]} 19. Bxf6 {[%clk 0:02:04.5]}
19... Bxf6 {[%clk 0:02:30.6]} 20. Bb5 {[%clk 0:01:49.4]} 20... Rf8 {[%clk
0:02:26.1]} 21. N3d2 {[%clk 0:01:23.4]} 21... g6 {[%clk 0:02:15.5]} 22. Nc4
{[%clk 0:01:17]} 22... Nxc4 {[%clk 0:02:14.5]} 23. Bxc4 {[%clk 0:01:17.9]} 23...
Bg7 {[%clk 0:02:13.1]} 24. Qc2 {[%clk 0:01:12.5]} 24... Rxd1 {[%clk 0:02:11.1]}
25. Rxd1 {[%clk 0:01:12.3]} 25... Rd8 {[%clk 0:02:11.6]} 26. Rxd8+ {[%clk
0:01:04.2]} 26... Qxd8 {[%clk 0:02:12.5]} 27. Ne3 {[%clk 0:01:04.4]} 27... Kf8
{[%clk 0:01:55.5]} 28. Bd5 {[%clk 0:01:04.3]} 28... Ba6 {[%clk 0:01:51.8]} 29.
c4 {[%clk 0:00:55.4]} 29... Bh6 {[%clk 0:01:50.9]} 30. Ng4 {[%clk 0:00:54.9]}
30... Bg7 {[%clk 0:01:50.8]} 31. Qe2 {[%clk 0:00:49.9]} 31... h5 {[%clk
0:01:49.9]} 32. Ne3 {[%clk 0:00:45.8]} 32... Bh6 {[%clk 0:01:49.9]} 33. Qf3
{[%clk 0:00:44.7]} 33... Qe7 {[%clk 0:01:45]} 34. Nd1 {[%clk 0:00:41.1]} 34...
Kg7 {[%clk 0:01:40.4]} 35. g4 {[%clk 0:00:37.5]} 35... hxg4 {[%clk 0:01:40]} 36.
hxg4 {[%clk 0:00:38.4]} 36... Bf4 {[%clk 0:01:39.6]} 37. Qh3 {[%clk 0:00:34.6]}
37... Bc8 {[%clk 0:01:37.8]} 38. f3 {[%clk 0:00:29.8]} 38... Qg5 {[%clk
0:01:36.1]} 39. Kf1 {[%clk 0:00:26.3]} 39... Be3 {[%clk 0:01:28.8]} 40. Qh2
{[%clk 0:00:18.4]} 40... Bd4 {[%clk 0:01:27.3]} 41. Qe2 {[%clk 0:00:13.8]} 41...
Qc1 {[%clk 0:01:26.1]} 42. Kg2 {[%clk 0:00:11.3]} 42... Bd7 {[%clk 0:01:22.3]}
43. b3 {[%clk 0:00:08.7]} 43... f5 {[%clk 0:01:15.4]} 44. exf5 {[%clk
0:00:08.2]} 44... gxf5 {[%clk 0:01:16.3]} 45. gxf5 {[%clk 0:00:06.7]} 45... Bxf5
{[%clk 0:01:17.2]} 46. Nf2 {[%clk 0:00:06.6]} 46... Qg5+ {[%clk 0:01:07.5]} 47.
Ng4 {[%clk 0:00:05.6]} 47... Bxg4 {[%clk 0:01:03.8]} 48. fxg4 {[%clk 0:00:06.5]}
48... Qf4 {[%clk 0:00:57]} 49. Qf3 {[%clk 0:00:04.8]} 49... Qd2+ {[%clk
0:00:56.4]} 50. Kf1 {[%clk 0:00:05]} 50... Qc1+ {[%clk 0:00:53.4]} 51. Ke2
{[%clk 0:00:05.2]} 51... Qc2+ {[%clk 0:00:44]} 52. Kf1 {[%clk 0:00:05.5]} 52...
Qc1+ {[%clk 0:00:44.3]} 53. Ke2 {[%clk 0:00:05.8]} 53... Qf4 {[%clk 0:00:40.3]}
54. Qxf4 {[%clk 0:00:05.7]} 54... exf4 {[%clk 0:00:41.2]} 55. Kf3 {[%clk
0:00:06.3]} 55... Be3 {[%clk 0:00:40.8]} 56. Be6 {[%clk 0:00:06.5]} 56... Kf6
{[%clk 0:00:41]} 57. Bf5 {[%clk 0:00:06.4]} 57... Ke5 {[%clk 0:00:40.6]} 58. Bd7
{[%clk 0:00:05.2]} 58... Kd4 {[%clk 0:00:29.3]} 59. g5 {[%clk 0:00:05.6]} 59...
Kc3 {[%clk 0:00:29.7]} 60. g6 {[%clk 0:00:06.1]} 60... Bd4 {[%clk 0:00:30]} 61.
Kxf4 {[%clk 0:00:04.2]} 61... Kxb3 {[%clk 0:00:30.2]} 62. Bb5 {[%clk 0:00:04.9]}
62... Kb4 {[%clk 0:00:29.2]} 63. Ke4 {[%clk 0:00:04.4]} 63... Ka5 {[%clk
0:00:29]} 64. Kd5 {[%clk 0:00:04.6]} 64... a6 {[%clk 0:00:29.4]} 65. Be8 {[%clk
0:00:05.2]} 65... Kb4 {[%clk 0:00:29.5]} 66. Bd7 {[%clk 0:00:04.2]} 66... Bg7
{[%clk 0:00:22.5]} 67. Be8 {[%clk 0:00:04.4]} 67... Bd4 {[%clk 0:00:19.4]} 68.
Bd7 {[%clk 0:00:04.7]} 68... Kc3 {[%clk 0:00:19.5]} 69. Kc6 {[%clk 0:00:04.4]}
69... Kxc4 {[%clk 0:00:08.9]} 70. Kxb6 {[%clk 0:00:04.4]} 70... Kb4 {[%clk
0:00:09.3]} 71. Kxa6 {[%clk 0:00:05]} 71... c4 {[%clk 0:00:09.9]} 72. Bf5 {[%clk
0:00:05]} 72... Kxa4 {[%clk 0:00:09.2]} 73. Kb7 {[%clk 0:00:03.7]} 73... Kb3
{[%clk 0:00:09.3]} 74. Kc6 {[%clk 0:00:04.3]} 74... c3 {[%clk 0:00:09.2]} 75.
Kd5 {[%clk 0:00:05]} 75... Bg7 {[%clk 0:00:09.5]} 76. Ke6 {[%clk 0:00:05.3]}
76... c2 {[%clk 0:00:09]} 77. Bxc2+ {[%clk 0:00:05.4]} 77... Kxc2 {[%clk
0:00:09.9]} 78. Kf7 {[%clk 0:00:06.2]} 78... Bb2 {[%clk 0:00:10.2]} 79. g7
{[%clk 0:00:07.1]} 79... Bxg7 {[%clk 0:00:10.7]} 1/2-1/2

[Event "*** Titled Tuesday Blitz"]
[Site "Chess.com"]
[Date "2021.04.20"]
[Round "4"]
[White "prachiti01"]
[Black "Ladislav1969"]
[Result "1-0"]
[WhiteElo "2216"]
[BlackElo "2314"]
[TimeControl "180+1"]
[EndTime "10:39:47 PDT"]
[Termination "prachiti01 won by resignation"]

1. e4 {[%clk 0:03:00.9]} 1... c5 {[%clk 0:02:59.4]} 2. c3 {[%clk 0:02:59.6]}
2... e6 {[%clk 0:03:00.3]} 3. d4 {[%clk 0:02:58.8]} 3... d5 {[%clk 0:03:00]} 4.
exd5 {[%clk 0:02:53.3]} 4... exd5 {[%clk 0:02:59.2]} 5. Nf3 {[%clk 0:02:53.2]}
5... Nc6 {[%clk 0:02:59.4]} 6. Be2 {[%clk 0:02:53.2]} 6... Nf6 {[%clk
0:02:59.4]} 7. O-O {[%clk 0:02:52.6]} 7... Be7 {[%clk 0:02:59.3]} 8. dxc5 {[%clk
0:02:51.5]} 8... Bxc5 {[%clk 0:02:58.7]} 9. Nbd2 {[%clk 0:02:51.6]} 9... h6
{[%clk 0:02:49.9]} 10. Nb3 {[%clk 0:02:51.5]} 10... Bd6 {[%clk 0:02:49.6]} 11.
h3 {[%clk 0:02:50.4]} 11... O-O {[%clk 0:02:49]} 12. Nbd4 {[%clk 0:02:50.4]}
12... Bd7 {[%clk 0:02:41.7]} 13. Be3 {[%clk 0:02:49.9]} 13... a6 {[%clk
0:02:40.8]} 14. Qb3 {[%clk 0:02:40]} 14... Qc7 {[%clk 0:02:40.1]} 15. Rad1
{[%clk 0:02:38]} 15... Rfe8 {[%clk 0:02:37.1]} 16. Rfe1 {[%clk 0:02:37.2]} 16...
Rad8 {[%clk 0:02:31.1]} 17. Bf1 {[%clk 0:02:36.9]} 17... Ne5 {[%clk 0:02:13.9]}
18. Nxe5 {[%clk 0:02:33.8]} 18... Bxe5 {[%clk 0:02:13.7]} 19. Nf3 {[%clk
0:02:33.3]} 19... Bf4 {[%clk 0:01:39.5]} 20. Bb6 {[%clk 0:02:28.2]} 20... Qc6
{[%clk 0:01:27.2]} 21. Bxd8 {[%clk 0:02:26.7]} 21... Rxd8 {[%clk 0:01:27.3]} 22.
Ne5 {[%clk 0:02:21.9]} 22... Qd6 {[%clk 0:01:17.1]} 23. Nxd7 {[%clk 0:02:16.7]}
23... Qxd7 {[%clk 0:01:15]} 24. Be2 {[%clk 0:02:12.2]} 24... Bb8 {[%clk
0:01:12]} 25. Bf3 {[%clk 0:02:09.2]} 25... Qd6 {[%clk 0:01:07]} 26. g3 {[%clk
0:02:09.1]} 26... Ba7 {[%clk 0:01:06.4]} 27. Kg2 {[%clk 0:02:05.5]} 27... Qc5
{[%clk 0:01:04]} 28. Re2 {[%clk 0:01:57.2]} 28... h5 {[%clk 0:00:59.5]} 29. Qb4
{[%clk 0:01:53.8]} 29... Qc7 {[%clk 0:00:38.9]} 30. Qf4 {[%clk 0:01:45.8]} 30...
Qc5 {[%clk 0:00:35.2]} 31. Red2 {[%clk 0:01:35.2]} 31... a5 {[%clk 0:00:22.4]}
32. h4 {[%clk 0:01:23]} 32... b5 {[%clk 0:00:22]} 33. Qd4 {[%clk 0:01:17.2]}
33... Qxd4 {[%clk 0:00:21.3]} 34. cxd4 {[%clk 0:01:17]} 34... Rc8 {[%clk
0:00:20.4]} 35. Re1 {[%clk 0:01:12.4]} 35... Rc4 {[%clk 0:00:20.2]} 36. b3
{[%clk 0:01:07.2]} 36... Rc3 {[%clk 0:00:15]} 37. Re7 {[%clk 0:01:00.6]} 37...
Bb8 {[%clk 0:00:13.5]} 38. Rb7 {[%clk 0:00:59.6]} 38... Bd6 {[%clk 0:00:12.5]}
39. Rxb5 {[%clk 0:00:59.4]} 39... Bb4 {[%clk 0:00:12.6]} 40. Re2 {[%clk
0:00:56.2]} 40... Rd3 {[%clk 0:00:09.8]} 41. Bxd5 {[%clk 0:00:55.5]} 41... Rxd4
{[%clk 0:00:09.4]} 42. Bc4 {[%clk 0:00:55.5]} 42... g6 {[%clk 0:00:07.5]} 43.
Rb8+ {[%clk 0:00:53.6]} 43... Kg7 {[%clk 0:00:07]} 44. Rb7 {[%clk 0:00:53.6]}
44... Rd7 {[%clk 0:00:05.6]} 45. Rxd7 {[%clk 0:00:52.3]} 45... Nxd7 {[%clk
0:00:06.3]} 46. f4 {[%clk 0:00:47]} 46... Kf6 {[%clk 0:00:06.6]} 47. Kf3 {[%clk
0:00:46.4]} 47... Nc5 {[%clk 0:00:06.8]} 48. Re8 {[%clk 0:00:40.2]} 48... Nb7
{[%clk 0:00:06.5]} 49. Rb8 {[%clk 0:00:36.5]} 49... Nd6 {[%clk 0:00:06.4]} 50.
Rb6 {[%clk 0:00:36.2]} 50... Ke7 {[%clk 0:00:05.5]} 51. Ra6 {[%clk 0:00:33.3]}
51... Nf5 {[%clk 0:00:04.8]} 52. a3 {[%clk 0:00:32.3]} 52... Bc3 {[%clk
0:00:04.6]} 53. Ra7+ {[%clk 0:00:30.3]} 53... Kd6 {[%clk 0:00:04]} 54. Rxf7
{[%clk 0:00:30]} 54... Nd4+ {[%clk 0:00:04.1]} 55. Kg2 {[%clk 0:00:30.1]} 55...
Nf5 {[%clk 0:00:02.9]} 56. Ra7 {[%clk 0:00:29.4]} 56... Ne3+ {[%clk 0:00:02]}
57. Kh3 {[%clk 0:00:29.3]} 57... Nxc4 {[%clk 0:00:01.6]} 58. bxc4 {[%clk
0:00:28.9]} 58... Kc5 {[%clk 0:00:02.5]} 59. Ra6 {[%clk 0:00:28.5]} 59... Kxc4
{[%clk 0:00:02.3]} 60. Rxg6 {[%clk 0:00:28.4]} 60... Kb3 {[%clk 0:00:02.9]} 61.
Rg5 {[%clk 0:00:27.9]} 61... Kxa3 {[%clk 0:00:03.5]} 62. Rxh5 {[%clk 0:00:27.9]}
62... Kb3 {[%clk 0:00:03.8]} 63. Rb5+ {[%clk 0:00:24.4]} 63... Kc4 {[%clk
0:00:03.4]} 64. Rb8 {[%clk 0:00:24]} 64... a4 {[%clk 0:00:03.6]} 65. Ra8 {[%clk
0:00:24]} 65... Kb4 {[%clk 0:00:02.6]} 66. f5 {[%clk 0:00:23.2]} 66... a3 {[%clk
0:00:02.8]} 67. g4 {[%clk 0:00:22.2]} 67... Kb3 {[%clk 0:00:02.9]} 68. g5 {[%clk
0:00:21.4]} 68... a2 {[%clk 0:00:03.2]} 69. f6 {[%clk 0:00:20.7]} 69... Bb2
{[%clk 0:00:03.4]} 70. Rxa2 {[%clk 0:00:20.4]} 70... Kxa2 {[%clk 0:00:03.2]} 71.
f7 {[%clk 0:00:20.1]} 71... Bg7 {[%clk 0:00:03]} 72. h5 {[%clk 0:00:20.3]} 72...
Kb3 {[%clk 0:00:03]} 73. Kg4 {[%clk 0:00:20.4]} 73... Bf8 {[%clk 0:00:03.8]} 74.
Kf5 {[%clk 0:00:20.5]} 74... Kc4 {[%clk 0:00:04]} 75. h6 {[%clk 0:00:19.6]}
75... Kd5 {[%clk 0:00:04.2]} 76. h7 {[%clk 0:00:19.8]} 76... Bg7 {[%clk
0:00:04.6]} 77. f8=Q {[%clk 0:00:19.4]} 77... Bxf8 {[%clk 0:00:05]} 78. h8=Q
{[%clk 0:00:19.6]} 78... Bd6 {[%clk 0:00:05.9]} 79. Qg8+ {[%clk 0:00:19.6]}
79... Kc6 {[%clk 0:00:06.1]} 80. Qe6 {[%clk 0:00:19.3]} 80... Kc7 {[%clk
0:00:05.6]} 81. g6 {[%clk 0:00:20.2]} 81... Bc5 {[%clk 0:00:05.3]} 82. g7 {[%clk
0:00:21.1]} 1-0

[Event "*** Titled Tuesday Blitz"]
[Site "Chess.com"]
[Date "2021.04.20"]
[Round "4"]
[White "Srisshhhtea"]
[Black "chegueps"]
[Result "1-0"]
[WhiteElo "2331"]
[BlackElo "2445"]
[TimeControl "180+1"]
[EndTime "10:39:53 PDT"]
[Termination "Srisshhhtea won on time"]

1. e4 {[%clk 0:03:00.9]} 1... e6 {[%clk 0:02:50.6]} 2. d4 {[%clk 0:03:00]} 2...
d5 {[%clk 0:02:51.5]} 3. Bd3 {[%clk 0:02:59]} 3... dxe4 {[%clk 0:02:49.6]} 4.
Bxe4 {[%clk 0:02:59.9]} 4... Nf6 {[%clk 0:02:50.3]} 5. Bf3 {[%clk 0:02:59]} 5...
c5 {[%clk 0:02:50.8]} 6. Ne2 {[%clk 0:02:57.5]} 6... Nc6 {[%clk 0:02:46.4]} 7.
Be3 {[%clk 0:02:54.7]} 7... Nd5 {[%clk 0:02:37.8]} 8. Bxd5 {[%clk 0:02:47.9]}
8... Qxd5 {[%clk 0:02:38.7]} 9. Nbc3 {[%clk 0:02:42.6]} 9... Qd8 {[%clk
0:02:35.3]} 10. dxc5 {[%clk 0:02:36.8]} 10... Qa5 {[%clk 0:02:30.9]} 11. a3
{[%clk 0:02:28.7]} 11... Be7 {[%clk 0:02:29.2]} 12. O-O {[%clk 0:02:24.7]} 12...
O-O {[%clk 0:02:26.6]} 13. b4 {[%clk 0:02:24.9]} 13... Qd8 {[%clk 0:02:25.4]}
14. Ne4 {[%clk 0:02:13.4]} 14... Bd7 {[%clk 0:01:45.4]} 15. Qd2 {[%clk
0:02:04.6]} 15... Qc7 {[%clk 0:01:18.7]} 16. Rfd1 {[%clk 0:01:59.8]} 16... Rfd8
{[%clk 0:01:15.7]} 17. c3 {[%clk 0:01:48.2]} 17... Ne5 {[%clk 0:01:14.1]} 18.
Bf4 {[%clk 0:01:41.6]} 18... Ba4 {[%clk 0:01:13]} 19. Nd6 {[%clk 0:01:33.1]}
19... Bxd1 {[%clk 0:01:12.4]} 20. Bxe5 {[%clk 0:01:27.5]} 20... Bxe2 {[%clk
0:01:09.3]} 21. Qxe2 {[%clk 0:01:28.4]} 21... Bxd6 {[%clk 0:01:09]} 22. Bxd6
{[%clk 0:01:26.9]} 22... Qc6 {[%clk 0:01:06.3]} 23. c4 {[%clk 0:01:15.3]} 23...
a6 {[%clk 0:01:01.3]} 24. b5 {[%clk 0:01:01.3]} 24... axb5 {[%clk 0:01:02.2]}
25. cxb5 {[%clk 0:01:02.2]} 25... Qd5 {[%clk 0:01:02.2]} 26. Rd1 {[%clk
0:00:58.2]} 26... Qb3 {[%clk 0:01:01.8]} 27. c6 {[%clk 0:00:48.7]} 27... bxc6
{[%clk 0:00:55.2]} 28. bxc6 {[%clk 0:00:49.6]} 28... h6 {[%clk 0:00:46.3]} 29.
c7 {[%clk 0:00:44]} 29... Rdc8 {[%clk 0:00:43.7]} 30. h3 {[%clk 0:00:43.4]}
30... Ra5 {[%clk 0:00:34.6]} 31. Rd3 {[%clk 0:00:21.6]} 31... Qb1+ {[%clk
0:00:33.5]} 32. Kh2 {[%clk 0:00:20.5]} 32... Qb6 {[%clk 0:00:30.2]} 33. Bg3
{[%clk 0:00:19.2]} 33... h5 {[%clk 0:00:27.7]} 34. Qd1 {[%clk 0:00:16.5]} 34...
Rxc7 {[%clk 0:00:21.8]} 35. Bxc7 {[%clk 0:00:14.3]} 35... Qxc7+ {[%clk
0:00:22.7]} 36. g3 {[%clk 0:00:14.8]} 36... h4 {[%clk 0:00:21.1]} 37. Kg2 {[%clk
0:00:14.8]} 37... hxg3 {[%clk 0:00:21]} 38. Rxg3 {[%clk 0:00:15.7]} 38... Rd5
{[%clk 0:00:18.7]} 39. Qg4 {[%clk 0:00:15]} 39... g6 {[%clk 0:00:18]} 40. a4
{[%clk 0:00:15.3]} 40... Qc6 {[%clk 0:00:17.8]} 41. Kh2 {[%clk 0:00:15.2]} 41...
Rc5 {[%clk 0:00:14.6]} 42. Qf3 {[%clk 0:00:14.4]} 42... Qxa4 {[%clk 0:00:11.8]}
43. Qe3 {[%clk 0:00:12.2]} 43... Rd5 {[%clk 0:00:09.5]} 44. Rxg6+ {[%clk
0:00:11.4]} 44... Kf8 {[%clk 0:00:09.1]} 45. Rg3 {[%clk 0:00:10.9]} 45... Qd1
{[%clk 0:00:07.8]} 46. Qh6+ {[%clk 0:00:10.6]} 46... Ke7 {[%clk 0:00:08.4]} 47.
Qh4+ {[%clk 0:00:10.4]} 47... Ke8 {[%clk 0:00:08.8]} 48. Rg8+ {[%clk 0:00:08.9]}
48... Kd7 {[%clk 0:00:08.1]} 49. Qd8+ {[%clk 0:00:09.4]} 49... Kc6 {[%clk
0:00:08.5]} 50. Qc8+ {[%clk 0:00:09.6]} 50... Kb5 {[%clk 0:00:08.7]} 51. Qb7+
{[%clk 0:00:09.8]} 51... Kc4 {[%clk 0:00:09.6]} 52. Rc8+ {[%clk 0:00:09.7]}
52... Kd3 {[%clk 0:00:09.5]} 53. Qa6+ {[%clk 0:00:08.6]} 53... Ke4 {[%clk
0:00:06.7]} 54. Rc4+ {[%clk 0:00:08.6]} 54... Rd4 {[%clk 0:00:05.5]} 55. Qc6+
{[%clk 0:00:07.3]} 55... Ke5 {[%clk 0:00:05.1]} 56. Qc5+ {[%clk 0:00:06.6]}
56... Rd5 {[%clk 0:00:04.8]} 57. Qe3+ {[%clk 0:00:06.8]} 57... Kd6 {[%clk
0:00:05]} 58. Qb6+ {[%clk 0:00:06.1]} 58... Ke7 {[%clk 0:00:04.7]} 59. Rc7+
{[%clk 0:00:06.2]} 59... Kf6 {[%clk 0:00:05.2]} 60. Qb2+ {[%clk 0:00:05.4]}
60... Kf5 {[%clk 0:00:05]} 61. Rxf7+ {[%clk 0:00:04.5]} 61... Ke4 {[%clk
0:00:05.6]} 62. f3+ {[%clk 0:00:04.1]} 62... Ke3 {[%clk 0:00:06.3]} 63. Rf6
{[%clk 0:00:04]} 63... Rd2+ {[%clk 0:00:06.6]} 64. Kg3 {[%clk 0:00:03.5]} 64...
Rxb2 {[%clk 0:00:06.5]} 65. Rxe6+ {[%clk 0:00:04.1]} 65... Kd2 {[%clk
0:00:05.5]} 66. Rd6+ {[%clk 0:00:04.5]} 66... Ke1 {[%clk 0:00:06]} 67. Rxd1+
{[%clk 0:00:05.4]} 67... Kxd1 {[%clk 0:00:06.9]} 68. h4 {[%clk 0:00:05.8]} 68...
Ke2 {[%clk 0:00:04.4]} 69. h5 {[%clk 0:00:05.3]} 69... Ke3 {[%clk 0:00:04.6]}
70. Kg4 {[%clk 0:00:05.6]} 70... Rb4+ {[%clk 0:00:04.2]} 71. Kg5 {[%clk
0:00:05.2]} 71... Kxf3 {[%clk 0:00:03.1]} 72. h6 {[%clk 0:00:06]} 72... Rb5+
{[%clk 0:00:03.6]} 73. Kg6 {[%clk 0:00:06.2]} 73... Kg4 {[%clk 0:00:03.9]} 74.
h7 {[%clk 0:00:07.1]} 74... Rb6+ {[%clk 0:00:04.8]} 75. Kg7 {[%clk 0:00:07.4]}
75... Kg5 {[%clk 0:00:04.4]} 76. h8=Q {[%clk 0:00:07.8]} 76... Rb7+ {[%clk
0:00:04.7]} 77. Kg8 {[%clk 0:00:08.2]} 77... Kg6 {[%clk 0:00:04.4]} 78. Qe5
{[%clk 0:00:07.5]} 78... Rb8+ {[%clk 0:00:01.9]} 79. Qxb8 {[%clk 0:00:07.3]} 1-0